bitfinex-derivatives/quotes_ETHF0:USTF0_20251005
["timestamp","ask_amount","ask_price","bid_price","bid_amount"]
[1759658764508,4.59e-06,4542.4,4542.3,3.7839]
[1759658764715,4.59e-06,4542.4,4542.3,0.8091]
[1759658764908,4.59e-06,4542.4,4542.3,8.4408]
[1759658765312,4.59e-06,4542.4,4542.3,8.2078]
[1759658765618,4.59e-06,4542.4,4542.3,0.233]
[1759658765815,4.59e-06,4542.4,4542.2,0.3962]
[1759658766015,4.59e-06,4542.4,4542.2,0.5761]
[1759658766213,4.59e-06,4542.4,4542.3,0.233]
[1759658766415,4.59e-06,4542.4,4541.7,3.2078]
[1759658766615,4.59e-06,4542.4,4541.9,0.39622]
[1759658766813,0.58130459,4542.4,4541.9,0.39622]
[1759658767017,0.5813,4542.1,4542.0,0.233]
[1759658767415,0.5813,4542.1,4541.7,0.39624]
[1759658767612,0.5813,4542.1,4541.2,3.2078]
[1759658767613,0.5813,4542.1,4541.2,3.7839]
[1759658767911,0.5813,4541.6,4540.7,0.5761]
[1759658768111,0.5813,4541.6,4540.8,0.233]
[1759658768317,3.2078,4541.7,4541.2,0.39628]
[1759658768622,3.60405,4541.7,4541.3,0.233]
[1759658768823,0.8048,4541.5,4541.4,0.233]
[1759658769417,0.8048,4541.5,4541.1,0.39629]
[1759658769618,0.5813,4541.4,4540.7,0.5761]
[1759658769818,0.39625,4541.6,4540.8,0.233]
[1759658770019,0.5813,4542.1,4541.3,0.5761]
[1759658770218,3.2078,4542.2,4541.9,0.39622]
[1759658770420,1.02439411,4542.1,4542.0,0.233]
[1759658770819,0.44309411,4542.1,4542.0,0.233]
[1759658771322,0.5813,4542.0,4541.5,0.5761]
[1759658771620,0.8048,4541.5,4540.9,0.39631]
[1759658771821,0.8048,4541.5,4540.6,0.5761]
[1759658772122,0.2235,4541.5,4541.1,0.39629]
[1759658772320,0.5813,4541.4,4541.2,0.233]
[1759658772523,0.2235,4541.5,4540.6,0.5761]
[1759658772722,0.5813,4541.0,4540.7,0.39633]
[1759658772926,0.5813,4541.0,4540.8,0.39632]
[1759658773325,0.5813,4541.0,4540.9,0.233]
[1759658773624,3.7891,4541.1,4540.2,0.5761]
[1759658773828,0.39632,4540.9,4540.2,0.5761]
[1759658774023,0.5813,4540.9,4540.5,0.39635]
[1759658774230,0.2235,4541.0,4540.6,0.39633]
[1759658774529,1.02463426,4540.9,4540.7,0.233]
[1759658774730,0.5813,4540.8,4540.7,0.233]
[1759658775027,0.61981,4541.0,4540.7,0.233]
[1759658775228,0.2235,4541.0,4540.7,0.233]
[1759658775431,0.61981,4541.0,4540.8,0.233]
[1759658775722,0.5813,4540.9,4539.7,0.5761]
[1759658775922,0.5813,4540.2,4539.7,0.5761]
[1759658776224,0.5813,4540.2,4539.9,0.3964]
[1759658776424,0.97768,4540.2,4539.8,0.233]
[1759658776725,0.5813,4540.2,4539.8,0.62941]
[1759658777125,0.5813,4540.2,4539.9,0.3964]
[1759658777422,0.5431,4540.2,4539.8,0.62941]
[1759658777827,3.60417,4540.3,4539.9,0.3964]
[1759658778130,3.2078,4540.3,4539.9,0.3964]
[1759658778526,0.5431,4540.2,4539.9,0.3964]
[1759658778826,3.2078,4540.3,4539.9,0.3964]
[1759658779122,3.60417,4540.3,4539.9,0.3964]
[1759658779427,0.2273,4540.0,4539.9,0.39639]
[1759658779629,0.7704,4540.0,4539.9,0.39639]
[1759658780622,0.7704,4540.0,4539.4,0.0015441]
[1759658780927,0.5431,4539.5,4539.4,0.0015441]
[1759658781117,0.7704,4539.5,4539.4,0.0015441]
[1759658781430,5.7704,4539.5,4539.4,0.0015441]
[1759658782820,0.7704,4539.5,4539.4,0.0015441]
[1759658783025,3.2067,4539.6,4539.4,0.9546841]
[1759658783218,3.2067,4539.6,4539.5,0.5567]
[1759658783727,0.93954,4539.5,4539.4,0.2345441]
[1759658783931,1.16684,4539.5,4539.4,0.0015441]
[1759658784119,6.16684,4539.5,4539.4,0.0015441]
[1759658784321,5.7704,4539.5,4539.4,0.0015441]
[1759658784522,0.5431,4539.5,4539.4,0.0015441]
[1759658784722,3.2067,4539.6,4539.5,0.5567]
[1759658785824,3.2078,4540.1,4540.0,0.39639]
[1759658786026,3.2078,4540.1,4540.0,0.95309]
[1759658786924,3.2078,4540.1,4540.0,1.18299]
[1759658787535,3.2078,4540.8,4540.5,0.7866]
[1759658787824,3.2078,4540.8,4540.7,0.95303]
[1759658788426,3.7509,4540.8,4540.7,0.232]
[1759658788627,3.2078,4540.8,4540.7,0.7887]
[1759658789425,3.2078,4541.4,4540.8,0.99081]
[1759658789728,3.2078,4541.4,4541.2,0.39629]
[1759658790029,3.2078,4541.4,4541.3,0.7887]
[1759658790335,3.7509,4541.4,4541.3,0.7887]
[1759658791121,3.7509,4541.4,4541.3,0.5567]
[1759658791330,3.2078,4541.4,4541.3,0.5567]
[1759658791529,3.2078,4541.4,4541.3,0.7887]
[1759658791831,3.2078,4541.4,4541.3,0.5567]
[1759658792026,3.8022,4541.4,4541.3,0.232]
[1759658792420,3.2078,4541.4,4541.3,0.7716]
[1759658793027,3.2078,4541.9,4541.8,0.93584]
[1759658793329,3.20780459,4542.4,4541.9,0.39623]
[1759658793523,3.80220459,4542.4,4542.0,0.5396]
[1759658793719,3.80220459,4542.4,4542.3,0.39619]
[1759658794124,3.20780459,4542.4,4542.3,0.93579]
[1759658795131,3.20780459,4542.4,4542.3,5.93579]
[1759658795533,4.59e-06,4542.4,4542.3,5.93579]
[1759658795725,4.59e-06,4542.4,4542.3,5.39619]
[1759658796128,4.59e-06,4542.4,4542.3,39.99219]
[1759658796632,4.59e-06,4542.4,4542.3,43.19999]
[1759658797523,4.59e-06,4542.4,4542.3,3.60399]
[1759658797826,4.59e-06,4542.4,4542.3,34.99019]
[1759658798028,4.59e-06,4542.4,4542.3,0.93579]
[1759658798328,4.59e-06,4542.4,4542.3,0.5396]
[1759658798533,3.80220459,4542.4,4542.3,0.62819]
[1759658798734,4.59e-06,4542.4,4542.3,1.16779]
[1759658800031,4.59e-06,4542.4,4542.3,0.5396]
[1759658800231,4.59e-06,4542.4,4542.3,0.7716]
[1759658800431,4.59e-06,4542.4,4542.3,8.4398]
[1759658801629,4.59e-06,4542.4,4542.3,8.2078]
[1759658801835,4.59e-06,4542.4,4542.3,42.7958]
[1759658802228,4.59e-06,4542.4,4542.3,3.2078]
[1759658802547,4.59e-06,4542.4,4542.2,0.3962]
[1759658802742,4.59e-06,4542.4,4542.3,0.231]
[1759658803233,4.59e-06,4542.4,4542.3,8.4388]
[1759658803432,4.59e-06,4542.9,4542.5,1.21774]
[1759658803636,4.59e-06,4542.9,4542.8,0.93575]
[1759658803828,4.59e-06,4542.9,4542.8,1.16675]
[1759658804441,0.59601576,4542.9,4542.8,1.1687731]
[1759658804641,0.00161576,4542.9,4542.8,1.1687731]
[1759658805734,0.00051576,4542.9,4542.8,1.1687731]
[1759658805936,0.00051576,4542.9,4542.8,0.9377731]
[1759658806130,0.59491576,4542.9,4542.8,0.0020231]
[1759658806331,0.59491576,4542.9,4542.8,0.2330231]
[1759658806930,0.00051576,4542.9,4542.8,0.7726231]
[1759658807133,0.00051576,4542.9,4542.8,0.2330231]
[1759658807939,3.20721576,4543.0,4542.9,0.39614]
[1759658808330,3.20721576,4543.0,4542.9,0.568]
[1759658808331,3.78421576,4543.0,4542.9,0.568]
[1759658808536,0.577,4542.9,4542.8,0.6291731]
[1759658808744,0.577,4542.9,4542.8,1.1971731]
[1759658808946,0.57889918,4542.9,4542.8,0.2330231]
[1759658809145,0.57889918,4542.9,4542.8,0.0020231]
[1759658809338,0.57889918,4542.9,4542.8,0.2330231]
[1759658809544,0.57889918,4542.9,4542.8,0.8010231]
[1759658809849,0.57889918,4542.9,4542.8,0.0020231]
[1759658810145,0.57779918,4542.9,4542.8,0.2330231]
[1759658810335,0.57779918,4542.9,4542.8,0.8010231]
[1759658810735,0.00189918,4542.9,4542.8,0.8010231]
[1759658810937,0.00189918,4542.9,4542.8,0.0020231]
[1759658811142,0.00189918,4542.9,4542.8,0.2330231]
[1759658811645,0.00189918,4542.9,4542.8,0.8010231]
[1759658815243,0.00189918,4542.9,4542.8,1.5607231]
[1759658815438,1.30429918,4542.9,4542.8,1.3297231]
[1759658815742,1.30429918,4542.9,4542.8,1.5607231]
[1759658816145,0.39618,4542.5,4541.7,0.568]
[1759658816344,0.577,4542.4,4542.0,0.7836]
[1759658816546,3.2078,4542.5,4542.2,0.9642]
[1759658816742,3.2078,4542.5,4542.4,0.568]
[1759658817141,3.7848,4542.5,4542.4,0.56991603]
[1759658817341,9.0164,4542.5,4542.4,0.00191603]
[1759658817552,9.0164,4542.5,4542.4,0.23291603]
[1759658817553,9.45435167,4542.5,4542.4,0.23291603]
[1759658818549,4.22275167,4542.5,4542.4,0.80091603]
[1759658818746,3.7848,4542.5,4542.4,0.23291603]
[1759658819043,4.45457973,4542.5,4542.4,0.00191603]
[1759658819246,4.45457973,4542.5,4542.4,0.23191603]
[1759658819846,0.99047,4542.4,4541.2,3.2078]
[1759658820043,0.577,4541.7,4541.3,0.798]
[1759658820240,3.2078,4541.9,4541.3,0.96427]
[1759658820452,0.577,4541.5,4541.4,0.23]
[1759658820745,0.577,4541.1,4540.5,0.568]
[1759658820950,0.577,4540.9,4540.5,0.00161385]
[1759658821146,0.577,4540.6,4540.5,0.00161385]
[1759658821548,0.577,4540.6,4540.5,0.23161385]
[1759658821940,0.577,4540.6,4540.5,0.00161385]
[1759658822146,0.577,4540.6,4540.5,0.23161385]
[1759658822546,0.39632,4540.9,4540.6,0.39634]
[1759658822547,0.577,4540.9,4540.6,0.39634]
[1759658822750,0.39632,4540.9,4540.7,0.23]
[1759658822953,0.39632,4540.9,4540.5,0.00161385]
[1759658822954,0.39633,4540.7,4540.5,0.00161385]
[1759658823152,0.577,4540.6,4540.5,0.00161385]
[1759658823655,0.577,4540.6,4540.5,0.23161385]
[1759658823855,0.577,4540.6,4540.5,0.00161385]
[1759658826160,5.577,4540.6,4540.5,0.00161385]
[1759658826953,5.97334,4540.6,4540.5,0.00161385]
[1759658827156,5.577,4540.6,4540.5,0.00161385]
[1759658828470,0.577,4540.6,4540.5,0.00161385]
[1759658828968,0.577,4540.6,4540.5,0.56961385]
[1759658829762,0.39633,4540.7,4540.5,0.56961385]
[1759658829964,0.577,4540.9,4540.7,0.39633]
[1759658830268,3.2078,4541.0,4540.9,0.568]
[1759658830865,0.2316,4542.0,4541.3,0.568]
[1759658830866,0.39626,4541.5,4541.3,0.568]
[1759658831061,3.60406,4541.6,4541.3,0.568]
[1759658831263,3.60406,4541.6,4540.5,3.42501385]
[1759658831264,0.577,4540.6,4540.5,0.00161385]
[1759658831462,3.7848,4540.6,4540.5,0.00161385]
[1759658832363,0.577,4540.1,4539.0,0.568]
[1759658832564,3.7848,4539.5,4539.4,0.568]
[1759658832774,0.39644,4539.4,4539.3,0.23]
[1759658832967,0.39647,4539.2,4538.6,0.568]
[1759658833165,3.2078,4539.0,4538.6,0.39651]
[1759658833366,3.2078,4539.0,4538.7,0.6265]
[1759658833367,4.18304232,4539.0,4538.7,0.6265]
[1759658833568,4.18304232,4539.0,4538.9,0.568]
[1759658833767,3.78656232,4539.0,4538.9,0.568]
[1759658833967,3.78656232,4539.0,4538.9,0.798]
[1759658834965,3.78656232,4539.0,4538.9,0.568]
[1759658835370,3.78656232,4539.0,4538.9,0.798]
[1759658835770,3.78656232,4539.0,4538.9,0.568]
[1759658835964,3.78656232,4539.0,4538.9,0.798]
[1759658836165,3.78656232,4539.0,4538.9,0.23]
[1759658836365,0.577,4538.9,4538.6,0.39905194]
[1759658836672,0.577,4538.9,4538.7,1.1945]
[1759658836872,0.577,4538.9,4538.7,0.9645]
[1759658837270,0.577,4538.9,4538.8,1.16219]
[1759658837271,0.5694,4538.9,4538.8,1.16219]
[1759658837668,3.20956232,4539.0,4538.9,0.5367]
[1759658838675,0.00176232,4539.0,4538.9,0.5367]
[1759658839068,0.00176232,4539.0,4538.9,0.229]
[1759658839268,0.00176232,4539.0,4538.9,0.7657]
[1759658840182,4.51346232,4539.0,4538.9,0.5367]
[1759658840363,1.70041,4538.7,4538.6,0.00254194]
[1759658840569,1.70041,4538.7,4538.6,0.23154194]
[1759658842362,0.3772,4538.7,4538.6,1.51274194]
[1759658842566,4.90994232,4539.0,4538.9,0.9251]
[1759658842765,4.90994232,4539.0,4538.9,0.3884]
[1759658842966,1.34311,4538.7,4538.6,0.61994194]
[1759658843169,1.34311,4538.7,4538.6,1.15664194]
[1759658843368,1.70041,4538.7,4538.6,1.15664194]
[1759658843771,1.70041,4538.7,4538.6,0.00254194]
[1759658843969,1.70041,4538.7,4538.6,0.23154194]
[1759658845269,1.70041,4538.7,4538.6,0.00254194]
[1759658845471,1.70041,4538.7,4537.9,0.02203687]
[1759658845472,0.62827,4538.0,4537.9,0.02203687]
[1759658845675,5.13997,4538.0,4537.9,0.02203687]
[1759658846472,5.13997,4538.0,4537.9,0.02474298]
[1759658846868,4.7434,4538.0,4537.9,0.02474298]
[1759658847978,4.7434,4538.0,4537.9,0.41314298]
[1759658848279,3.2078,4538.0,4537.9,1.30594298]
[1759658848477,0.77373,4538.4,4538.3,0.3884]
[1759658848677,1.3039,4538.4,4538.3,0.6184]
[1759658849280,1.3039,4538.0,4537.9,0.41314298]
[1759658849472,4.7434,4538.0,4537.9,0.25374298]
[1759658849678,4.5117,4538.0,4537.9,0.64214298]
[1759658849982,3.9423,4538.0,4537.9,1.53494298]
[1759658850183,0.3772,4538.0,4537.9,1.39482298]
[1759658850681,0.3772,4538.0,4537.9,1.93152298]
[1759658850981,1.3039,4538.0,4537.9,1.53494298]
[1759658851182,0.3772,4538.0,4537.9,1.53494298]
[1759658852085,0.7345,4538.0,4537.9,1.30594298]
[1759658852283,0.39653,4538.4,4537.9,1.30594298]
[1759658852284,0.3734,4538.3,4538.2,0.39654]
[1759658852585,0.3734,4538.3,4538.2,1.10574]
[1759658852782,1.2928,4538.3,4538.2,0.7092]
[1759658852982,1.2928,4538.3,4538.2,0.3554]
[1759658853378,3.2078,4538.5,4537.9,0.94504298]
[1759658853379,1.2928,4538.0,4537.9,0.94504298]
[1759658853585,1.2928,4538.0,4537.9,1.17404298]
[1759658853786,3.9579,4538.5,4538.2,0.39654]
[1759658853980,0.3734,4538.3,4538.2,1.67064]
[1759658854180,1.2928,4538.3,4538.2,1.5031]
[1759658855085,1.2928,4538.3,4538.2,0.5844]
[1759658855287,1.2928,4538.3,4538.2,0.229]
[1759658855889,0.7564,4538.3,4538.2,0.229]
[1759658856187,1.2928,4538.0,4537.9,1.34161298]
[1759658856382,1.2928,4538.0,4537.9,1.57061298]
[1759658856588,1.2928,4538.0,4537.9,1.92441298]
[1759658856789,0.7564,4538.0,4537.9,1.92441298]
[1759658856982,0.3734,4538.3,4538.2,1.10575]
[1759658857179,3.2078,4538.5,4538.4,1.2741]
[1759658857379,4.1176,4538.5,4538.4,1.5031]
[1759658857591,4.5006,4538.5,4538.4,0.5844]
[1759658857985,4.1779,4538.5,4538.1,0.39655]
[1759658858178,0.7564,4538.3,4538.2,0.229]
[1759658858390,1.2928,4538.3,4538.2,0.229]
[1759658859289,1.2928,4538.3,4538.2,0.5844]
[1759658859491,1.2928,4538.3,4538.2,1.1493]
[1759658860087,1.2928,4538.3,4538.2,1.5031]
[1759658860288,3.2078,4538.5,4538.4,1.2741]
[1759658860489,0.75816232,4539.0,4538.9,1.67059]
[1759658860785,0.00176232,4539.0,4538.9,1.89959]
[1759658864391,3.2078,4539.6,4539.5,0.39644]
[1759658864595,3.2078,4539.6,4539.5,2.12884]
[1759658864993,0.5364,4539.5,4539.0,0.2293]
[1759658865195,0.5364,4539.5,4539.4,1.31674]
[1759658865196,1.2928,4539.5,4539.4,1.31674]
[1759658865590,1.29492828,4539.5,4539.4,1.89954]
[1759658865791,1.29492828,4539.5,4539.0,0.2293]
[1759658865792,0.97222828,4539.5,4539.0,0.5649]
[1759658866094,0.97222828,4539.5,4538.6,0.78591908]
[1759658866095,1.2928,4538.7,4538.6,1.31681]
[1759658866389,1.2928,4538.6,4538.5,0.39652]
[1759658866595,1.2928,4538.6,4538.5,0.98092]
[1759658866796,1.2928,4538.6,4538.5,0.5844]
[1759658867386,1.2928,4538.6,4538.5,0.229]
[1759658867796,0.7564,4538.6,4538.5,0.229]
[1759658868098,1.2909,4538.6,4538.5,0.229]
[1759658868499,1.2909,4538.6,4538.5,0.5948]
[1759658868796,0.2274,4538.5,4538.2,0.39655]
[1759658868992,0.2274,4538.5,4538.1,0.5304]
[1759658868993,1.2619,4538.3,4538.1,0.5304]
[1759658869191,1.2619,4538.3,4538.2,0.229]
[1759658869387,0.5345,4538.2,4538.0,0.39656]
[1759658869593,1.2619,4538.0,4537.9,1.31752298]
[1759658869893,3.2078,4538.2,4537.9,1.52164298]
[1759658870091,0.5345,4538.5,4538.2,0.5304]
[1759658870291,1.12396,4538.2,4538.0,0.229]
[1759658870498,1.12396,4538.2,4537.9,0.92094298]
[1759658870499,1.2619,4538.0,4537.9,0.92094298]
[1759658870700,1.2619,4538.0,4537.9,1.14994298]
[1759658870894,1.2619,4538.0,4537.9,1.52164298]
[1759658871296,0.7274,4538.0,4537.9,1.52164298]
[1759658871691,3.2078,4538.2,4538.1,0.7375]
[1759658871894,3.2078,4538.2,4538.1,1.2679]
[1759658872201,1.30782,4538.5,4538.4,1.2679]
[1759658872391,1.2619,4538.5,4538.4,1.4969]
[1759658872597,1.2619,4538.0,4537.9,0.39054298]
[1759658872899,1.2619,4538.0,4537.9,1.14994298]
[1759658873098,0.3768,4538.0,4537.9,1.52164298]
[1759658873692,1.2619,4538.0,4537.9,1.52164298]
[1759658874101,0.7274,4538.0,4537.9,1.52164298]
[1759658874699,3.2078,4538.2,4538.1,0.7375]
[1759658874899,3.5846,4538.2,4538.1,1.2679]
[1759658875202,4.4697,4538.2,4538.1,1.2679]
[1759658875700,4.4697,4538.8,4538.7,1.2679]
[1759658875996,4.4697,4538.8,4538.7,1.4969]
[1759658876201,3.9352,4538.8,4538.7,1.4969]
[1759658876798,4.4697,4538.8,4538.7,1.4969]
[1759658876993,0.3768,4538.6,4538.5,0.5304]
[1759658877204,1.2619,4538.6,4538.5,1.4969]
[1759658877899,3.2078,4538.8,4538.7,1.2679]
[1759658878398,4.4697,4538.8,4538.5,0.39652]
[1759658878599,1.2619,4538.7,4538.6,1.1252]
[1759658878794,0.3768,4538.7,4538.6,1.4969]
[1759658878992,3.2078,4539.4,4538.8,0.3965]
[1759658879195,3.5846,4539.4,4539.3,1.66435]
[1759658879396,3.5846,4539.4,4539.3,1.4969]
[1759658879596,3.2078,4539.4,4539.3,1.4969]
[1759658880397,3.5846,4539.4,4539.3,1.4969]
[1759658880610,0.39647,4539.1,4538.9,1.31631908]
[1759658880900,4.1191,4539.4,4539.3,0.3658]
[1759658881107,3.5846,4539.4,4539.3,1.4969]
[1759658882412,4.4697,4539.4,4539.3,0.229]
[1759658882908,4.4697,4539.4,4539.3,1.1252]
[1759658883404,4.4697,4539.4,4539.3,1.4969]
[1759658884201,4.4697,4539.4,4539.3,0.8962]
[1759658884398,4.4697,4539.4,4539.3,0.229]
[1759658884798,4.4697,4539.4,4538.9,0.5304]
[1759658885104,0.9113,4538.7,4538.6,0.39651]
[1759658885302,0.5345,4538.6,4538.4,0.5304]
[1759658885607,1.2619,4538.2,4538.1,1.18749098]
[1759658885906,1.2619,4538.2,4538.1,0.229]
[1759658886103,1.2619,4538.2,4538.1,0.5948]
[1759658886894,1.2619,4538.2,4538.1,1.1252]
[1759658887096,1.2619,4538.2,4538.1,0.8962]
[1759658887302,1.2619,4538.2,4538.1,1.4969]
[1759658887619,1.2619,4538.2,4538.1,0.9665]
[1759658887799,1.2619,4538.2,4538.1,0.5948]
[1759658888000,1.2619,4538.2,4537.9,0.42131298]
[1759658888201,1.2619,4538.1,4538.0,0.229]
[1759658888504,0.7619,4538.0,4537.9,0.02474298]
[1759658888701,1.4893,4538.0,4537.9,0.02474298]
[1759658888902,1.4893,4538.0,4537.9,0.25374298]
[1759658891201,1.4893,4538.0,4537.9,0.02474298]
[1759658892609,1.4893,4538.0,4537.9,0.39054298]
[1759658892807,3.2078,4538.4,4538.0,0.99143]
[1759658893104,4.1191,4538.4,4538.3,1.2679]
[1759658893308,4.1191,4538.4,4538.3,1.4969]
[1759658893502,4.4697,4538.4,4537.9,0.02474298]
[1759658893698,1.2619,4536.9,4536.8,3.2078]
[1759658893903,1.2619,4536.5,4536.3,0.15359333]
[1759658894102,1.2619,4536.5,4536.0,1.39953123]
[1759658894103,1.2619,4536.5,4536.4,0.5948]
[1759658894711,1.2619,4536.5,4536.4,0.36833513]
[1759658894906,1.2619,4536.5,4533.7,40.8]
[1759658894907,0.2274,4536.0,4535.9,0.79093098]
[1759658895105,0.5345,4535.9,4535.6,0.15415851]
[1759658895300,3.2078,4536.1,4536.0,0.5304]
[1759658895505,3.2078,4536.1,4536.0,0.7594]
[1759658895897,3.21030294,4536.1,4536.0,0.76100039]
[1759658896313,3.21030294,4536.1,4536.0,0.97760039]
[1759658896708,3.74480294,4536.1,4536.0,0.76100039]
[1759658897512,3.21030294,4536.1,4536.0,0.97510039]
[1759658897814,0.00032613,4536.1,4536.0,6.68460039]
[1759658898711,3.2078,4537.1,4537.0,1.2199]
[1759658898910,3.5788,4537.1,4537.0,1.663]
[1759658899213,1.2329,4537.0,4536.9,0.3661]
[1759658899409,1.2329,4537.0,4536.9,1.1055]
[1759658899606,0.5229,4536.9,4536.5,0.5104]
[1759658899809,1.2329,4536.6,4536.1,0.5104]
[1759658900010,0.5229,4536.2,4536.0,0.00160039]
[1759658900220,1.2329,4536.1,4536.0,0.00160039]
[1759658900518,4.4407,4536.1,4536.0,0.23060039]
[1759658901008,4.4407,4536.1,4536.0,0.00160039]
[1759658901514,4.4407,4536.1,4536.0,0.23060039]
[1759658901715,4.4407,4536.1,4536.0,0.00160039]
[1759658901916,4.4407,4536.1,4536.0,0.23060039]
[1759658903922,0.71,4535.0,4534.9,1.61674]
[1759658904215,0.371,4535.2,4535.1,1.10632]
[1759658904711,0.8939,4535.4,4535.3,1.1063]
[1759658904917,0.8939,4535.4,4535.3,1.61917227]
[1759658905215,0.5229,4535.8,4535.3,1.22237227]
[1759658905415,0.371,4535.7,4535.6,1.10627]
[1759658905611,0.371,4535.7,4535.6,1.10628]
[1759658905915,0.91962,4536.2,4535.6,0.7095]
[1759658906102,3.5788,4536.1,4536.0,1.2199]
[1759658906311,3.5788,4536.1,4536.0,1.4489]
[1759658906612,3.5788,4536.1,4536.0,1.663]
[1759658907009,1.10678,4535.6,4535.5,0.8765]
[1759658907212,1.2329,4535.4,4535.3,0.00247227]
[1759658907405,1.2329,4535.4,4535.3,0.59757227]
[1759658907609,1.2329,4535.4,4535.3,1.45137227]
[1759658907813,1.2329,4535.4,4535.3,0.59757227]
[1759658908418,1.2329,4535.4,4535.3,1.45137227]
[1759658908718,0.371,4535.8,4535.7,1.2199]
[1759658909213,1.2329,4535.8,4535.7,1.2199]
[1759658909518,1.2329,4535.4,4535.3,0.87897227]
[1759658910119,1.2329,4535.4,4535.3,1.10797227]
[1759658910317,1.2329,4535.4,4535.3,0.87897227]
[1759658910621,1.2329,4535.4,4535.3,0.23147227]
[1759658910822,1.2329,4535.4,4535.3,0.00247227]
[1759658911223,1.2329,4535.4,4535.3,0.23147227]
[1759658912130,1.2329,4535.4,4535.3,0.00247227]
[1759658913232,1.2329,4535.4,4535.3,0.23147227]
[1759658913625,0.3438,4534.5,4534.4,0.39688]
[1759658913820,0.3438,4534.1,4534.0,1.4368]
[1759658914033,0.3438,4534.1,4534.0,2.06272]
[1759658914730,0.3438,4534.1,4534.0,2.21763129]
[1759658915127,0.3438,4534.1,4534.0,1.82071129]
[1759658915432,1.2341,4534.1,4534.0,0.23103387]
[1759658916927,1.2341,4534.1,4534.0,0.00203387]
[1759658917133,1.2341,4534.1,4534.0,0.23103387]
[1759658917429,1.2341,4534.1,4534.0,0.00203387]
[1759658917627,1.2341,4534.1,4534.0,0.23103387]
[1759658918131,1.2341,4534.1,4534.0,0.00203387]
[1759658918330,1.4464,4533.0,4532.9,0.02206118]
[1759658918528,4.6542,4533.0,4532.9,0.02206118]
[1759658918723,4.6542,4533.0,4532.9,0.25106118]
[1759658918921,4.6542,4533.0,4532.9,0.02206118]
[1759658919122,4.6542,4533.0,4532.9,0.25106118]
[1759658919327,4.65643412,4533.0,4532.9,1.12495724]
[1759658919836,4.65643412,4533.0,4532.9,0.59565724]
[1759658920039,4.65643412,4533.0,4532.9,0.25295724]
[1759658921331,4.65643412,4533.0,4532.9,0.02395724]
[1759658921727,0.5201,4532.0,4531.9,0.3971]
[1759658922030,1.2341,4532.0,4531.9,0.9688]
[1759658922230,0.3438,4532.0,4531.9,1.8488]
[1759658922628,1.2341,4532.5,4532.4,1.61976]
[1759658922835,1.2341,4532.5,4532.4,1.62261495]
[1759658923235,1.2341,4532.5,4532.4,1.22555495]
[1759658923426,0.3438,4532.5,4532.4,1.22555495]
[1759658924632,0.3438,4532.5,4532.4,1.62261495]
[1759658924839,0.5201,4532.8,4532.4,1.62261495]
[1759658925034,0.00223412,4533.0,4532.9,1.61971]
[1759658925941,1.23633412,4533.0,4532.9,1.4517]
[1759658926135,4.44413412,4533.0,4532.9,0.3427]
[1759658926331,3.92403412,4533.0,4532.9,0.229]
[1759658926536,4.44413412,4533.0,4532.8,0.39702]
[1759658926739,3.92403412,4533.0,4532.9,1.101]
[1759658927233,3.92403412,4533.0,4532.8,0.39702]
[1759658927234,4.44293412,4533.0,4532.8,0.39702]
[1759658927432,1.237,4532.9,4532.8,0.75552]
[1759658927634,3.21003412,4533.0,4532.8,1.32752]
[1759658927836,3.21003412,4533.0,4532.9,1.237]
[1759658928935,0.00223412,4533.0,4532.9,1.237]
[1759658929342,0.00223412,4533.0,4532.9,6.237]
[1759658930135,0.00223412,4533.0,4532.9,40.883]
[1759658930532,3.2078,4533.5,4533.4,0.7015]
[1759658930744,3.2078,4533.5,4533.4,1.86297]
[1759658930938,3.5614,4534.0,4533.9,1.63393]
[1759658931141,0.3536,4534.0,4533.9,1.86293]
[1759658931532,0.35550942,4534.0,4533.9,1.86293]
[1759658932245,0.00190942,4534.0,4533.9,1.86293]
[1759658932840,0.5189,4535.1,4534.5,0.2099]
[1759658932841,0.3536,4534.9,4534.5,0.2099]
[1759658933044,0.3536,4534.9,4534.8,1.237]
[1759658933244,0.3536,4534.9,4534.8,1.63385]
[1759658933647,1.237,4534.9,4534.8,1.63385]
[1759658933942,1.23873915,4534.9,4534.8,0.3585]
[1759658934144,0.00173915,4534.9,4534.8,1.61810501]
[1759658934347,1.237,4534.6,4534.5,0.894]
[1759658934545,1.237,4534.6,4534.5,1.123]
[1759658934750,0.35533915,4534.9,4534.8,0.75535]
[1759658934939,0.35533915,4534.9,4534.8,1.29085]
[1759658934940,1.23873915,4534.9,4534.8,1.29085]
[1759658935141,1.23873915,4534.9,4534.8,0.229]
[1759658935847,1.237,4534.8,4534.7,0.91008542]
[1759658936044,0.7181,4534.8,4534.7,2.01758542]
[1759658936243,0.35533915,4534.9,4534.8,1.237]
[1759658936545,1.23873915,4534.9,4534.8,1.237]
[1759658938442,1.23873915,4534.9,4534.8,0.3585]
[1759658938648,1.23873915,4534.9,4534.8,0.894]
[1759658939349,1.23873915,4534.9,4534.8,1.123]
[1759658939744,1.23873915,4534.9,4534.8,0.894]
[1759658939945,1.23873915,4534.9,4534.8,0.5875]
[1759658940143,1.23873915,4534.9,4534.7,0.15473542]
[1759658940348,0.5189,4534.5,4534.4,0.39688]
[1759658940651,0.9299,4534.5,4534.2,0.5355]
[1759658940946,0.9299,4534.5,4533.7,34.413]
[1759658940947,0.3536,4533.9,4533.7,0.5355]
[1759658941154,1.237,4533.9,4533.8,1.466]
[1759658941353,0.7181,4533.9,4533.8,1.466]
[1759658941557,1.237,4533.9,4533.8,1.466]
[1759658942153,1.237,4533.9,4533.8,1.39383584]
[1759658942658,1.237,4533.9,4533.4,3.2078]
[1759658942851,0.7181,4533.6,4533.5,0.5875]
[1759658943158,1.237,4533.6,4533.5,0.741212]
[1759658943351,1.237,4533.6,4533.5,1.276712]